[Event "10th Cherry Blossom Classic 2023"]
[Site "Dulles"]
[Date "2023.05.25"]
[Round "1.1"]
[White "Nyzhnyk, Illya"]
[Black "Aripov, Iskandar"]
[Result "1/2-1/2"]
[ECO "E00"]
[WhiteElo "2644"]
[BlackElo "2211"]
[Annotator "TA"]
[PlyCount "100"]
[EventDate "2023.05.24"]
[EventType "swiss"]
[EventCountry "USA"]
[SourceTitle "playchess.com"]
[Source "ChessBase"]
[SourceQuality "1"]
[TimeControl "5400+30"]

{[%evp 12,100,35,30,45,36,39,42,36,39,50,51,55,43,66,41,50,14,31,31,27,31,19,27,18,11,35,4,18,28,29,28,50,41,50,32,47,0,23,19,41,41,82,41,41,41,68,0,32,0,22,0,0,0,20,-13,0,-163,-211,-183,-172,-171,-169,-154,0,0,-2,-9,0,0,0,0,0,0,0,0,0,0,0,0,0,0,0,0,0,0,0,0,0,0,0]} 1. d4 {[%emt 0:00:01]} Nf6 {[%emt 0:00:07]} 2. c4 {[%emt 0:00:05]} e6 {[%emt 0:00:16]} 3. g3 {[%emt 0:00:04]} Bb4+ {[%emt 0:01:08]} 4. Bd2 {[%emt 0:00:13]} Bxd2+ {[%emt 0:00:45]} 5. Qxd2 {[%emt 0:00:13]} O-O {[%emt 0:00:25]} 6. Bg2 {[%emt 0:00:03]} d6 {[%emt 0:00:51]} 7. Nc3 {[%emt 0:00:38]} Nc6 {[%emt 0:00:53] E00: Catalan Bogo-Indian (3 g3 Bb4+).} 8. e4 {[%emt 0:13:24]} e5 {[%emt 0:06:11]} 9. Nge2 {[%emt 0:00:06] [#]} Bg4 $146 {[%emt 0:10:46] White is slightly better.} ({Predecessor:} 9... h5 10. h3 b6 11. O-O Bb7 12. Rad1 exd4 13. Nxd4 Nxd4 14. Qxd4 Re8 15. Rfe1 Qe7 {1-0 Fernandez,J (2218)-Glinz,G (2446) ARG-ch23 email 2010}) 10. f3 {[%emt 0:00:06]} exd4 {[%emt 0:00:56]} 11. Nxd4 {[%emt 0:00:06]} Be6 {[%emt 0:00:58]} 12. b3 {[%emt 0:00:17]} Qd7 {[%emt 0:12:34]} 13. g4 {[%emt 0:01:34]} Qe7 {[%emt 0:10:09]} 14. h4 {[%emt 0:01:44]} Nd7 {[%emt 0:05:13]} 15. Nf5 {[%emt 0:01:10]} Bxf5 {[%emt 0:01:42]} 16. gxf5 {[%emt 0:00:09]} Nb6 {[%emt 0:00:46]} 17. f4 {[%emt 0:05:41]} a5 {[%emt 0:01:31]} 18. Kf2 {[%emt 0:05:47]} a4 {[%emt 0:02:13]} 19. Rae1 {[%emt 0:00:12]} axb3 {[%emt 0:00:16]} 20. axb3 {[%emt 0:00:01]} Qf6 {[%emt 0:08:15]} 21. Nb5 {[%emt 0:00:06] Wards off Ra3} Qe7 {[%emt 0:05:42]} 22. h5 {[%emt 0:10:35]} h6 {[%emt 0:00:55]} 23. Bf3 {[%emt 0:03:05]} Ra6 {[%emt 0:06:36]} 24. Ra1 {[%emt 0:06:54]} (24. Rhg1 $14) 24... Rfa8 {[%emt 0:01:20]} 25. Rxa6 {[%emt 0:00:04]} Rxa6 {[%emt 0:00:50]} 26. Kg3 {[%emt 0:00:22]} Na5 {[%emt 0:10:22]} 27. Qc3 {[%emt 0:05:16][%cal Of5f6] f6! is the strong threat. White is much more active.} Nc6 {[%emt 0:01:43]} 28. Rd1 {[%emt 0:01:00][%cal Of5f6]} Ra2 {[%emt 0:01:10]} 29. b4 {[%emt 0:46:04]} ({Better is} 29. f6 $14 gxf6 30. Kh3) 29... Ra4 {[%emt 0:02:05]} 30. Rb1 {[%emt 0:00:00]} Na7 {[%emt 0:01:02]} 31. Na3 {[%emt 0:00:00][%cal Bb5a3,Ba3c2,Bc2e3][%mdl 32]} Nc6 {[%emt 0:01:06]} 32. Nc2 {[%emt 0:00:00]} Nd7 {[%emt 0:00:50]} 33. Ne3 {[%emt 0:00:00]} Nf6 {[%emt 0:01:06]} 34. b5 $2 {[%emt 0:00:00] [#]} (34. Nd5 $1 $11 {and White stays safe.} Nxe4+ 35. Bxe4 Qxe4 36. Re1 Qxf5 37. b5 Qxh5 38. Re8+ (38. bxc6 $2 {loses.} Ra2 $19) 38... Kh7 39. Qc2+ f5 40. Qxa4 Qg6+ 41. Kf3 Qxe8 42. bxc6) 34... Nxe4+ $19 {[%emt 0:02:11]} 35. Bxe4 {[%emt 0:00:00]} Qxe4 {[%emt 0:00:02]} 36. Rd1 {[%emt 0:00:00][%cal Bb1d1,Bd1d3,Bd3a3][%mdl 32] Wards off Nd4} Ne7 {[%emt 0:00:05]} 37. Kg4 {[%emt 0:00:00]} Ra2 $2 {[%emt 0:01:37]} (37... g6 $17 38. fxg6 fxg6) 38. Qd3 $11 {[%emt 0:00:00] Really sharp! The position is equal.} Qxd3 {[%emt 0:01:51]} 39. Rxd3 {[%emt 0:00:00][%mdl 4096] Endgame KRN-KRN} b6 {[%emt 0:00:35]} 40. f6 $1 {[%emt 0:00:00]} gxf6 {[%emt 0:00:10]} 41. Nf5 {[%emt 0:00:00]} Nxf5 {[%emt 0:00:45]} 42. Kxf5 {[%emt 0:00:00] KR-KR} Re2 {[%emt 0:01:13]} 43. Ra3 {[%emt 0:00:00]} Kg7 {[%emt 0:00:29]} 44. Rg3+ {[%emt 0:00:00]} Kf8 {[%emt 0:00:05]} 45. Kxf6 {[%emt 0:00:00] [#] Strongly threatening f5.} Re6+ $1 {[%emt 0:00:53]} ({Resist} 45... Re4 46. f5 $16) 46. Kf5 {[%emt 0:00:00]} Ke7 {[%emt 0:00:41]} 47. Rg8 {[%emt 0:00:00]} Rf6+ {[%emt 0:00:50]} 48. Ke4 {[%emt 0:00:00]} Re6+ {[%emt 0:00:02]} 49. Kf5 {[%emt 0:00:00]} Rf6+ {[%emt 0:00:02]} 50. Ke4 {[%emt 0:00:00]} Re6+ {[%emt 0:00:05] Weighted Error Value: White=0.16 (very precise) /Black=0.15 (very precise)} 1/2-1/2

[Event "10th Cherry Blossom Classic 2023"]
[Site "Dulles"]
[Date "2023.05.25"]
[Round "1.2"]
[White "Sriniaiyer, Sudarshan"]
[Black "Durarbayli, Vasif"]
[Result "1/2-1/2"]
[ECO "E48"]
[WhiteElo "2211"]
[BlackElo "2627"]
[Annotator "TA"]
[PlyCount "79"]
[EventDate "2023.05.24"]
[EventType "swiss"]
[EventCountry "USA"]
[SourceTitle "playchess.com"]
[Source "ChessBase"]
[SourceQuality "1"]
[TimeControl "5400+30"]

{[%evp 19,79,14,20,19,16,0,33,22,26,32,28,13,47,12,47,47,45,53,98,91,268,184,182,179,162,164,181,189,184,131,133,125,140,136,120,108,108,108,108,108,135,137,136,97,97,97,115,56,49,47,48,53,59,10,15,15,15,0,0,0,0,0]} 1. d4 {[%emt 0:00:30] Hecht,Hans Joachim} Nf6 {[%emt 0:00:04]} 2. c4 {[%emt 0:00:00]} e6 {[%emt 0:00:08]} 3. Nc3 {[%emt 0:00:26]} Bb4 {[%emt 0:00:10]} 4. e3 {[%emt 0:00:08]} O-O {[%emt 0:00:13]} 5. Bd3 {[%emt 0:00:22]} c5 {[%emt 0:01:35]} 6. Nge2 {[%emt 0:03:46]} d5 {[%emt 0:02:49]} 7. cxd5 {[%emt 0:00:28]} cxd4 {[%emt 0:00:18]} 8. exd4 {[%emt 0:00:02]} Nxd5 {[%emt 0:01:05]} 9. O-O {[%emt 0:01:43]} Nc6 {[%emt 0:01:08]} 10. a3 {[%emt 0:06:52]} Be7 {[%emt 0:01:47]} 11. Re1 {[%emt 0:02:08] E48: Nimzo-Indian: Rubinstein: 5 Bd3 d5 including 6 Ne2, but excluding 6 a3.} Bf6 {[%emt 0:02:34]} 12. Bc2 {[%emt 0:04:10]} g6 {[%emt 0:10:20]} 13. Bh6 {[%emt 0:14:06] White is slightly better.} Re8 {[%emt 0:00:10]} 14. Ne4 {[%emt 0:03:48] [#]} Bh8 $146 {[%emt 0:00:26]} ({Predecessor:} 14... Bg7 15. Qd2 b6 16. Bg5 f6 17. Bh4 Nce7 18. N4c3 Bb7 19. Bg3 Nf5 20. Bxf5 exf5 21. Nxd5 Qxd5 {1-0 Sasikiran,K (2569)-Yegiazarian,A (2567) Goodricke op 13th 2002 (9)}) 15. Qd2 {[%emt 0:01:46]} b6 {[%emt 0:06:39]} 16. Ba4 {[%emt 0:10:58]} (16. Rac1 $5 {[%cal Rc2a4]}) 16... Bb7 {[%emt 0:01:08]} (16... Bd7 $5 {[%cal Rc6d4]}) 17. Rac1 {[%emt 0:02:12]} Rc8 {[%emt 0:00:14]} 18. N2c3 {[%emt 0:07:33]} Nxc3 {[%emt 0:02:01]} 19. bxc3 {[%emt 0:00:42][%cal Bb2c3,Bc3c4][%mdl 32]} Qd5 $2 {[%emt 0:01:11]} (19... f5 $16 {keeps fighting.}) 20. c4 {[%emt 0:04:18]} Qxd4 {[%emt 0:05:23]} 21. Qxd4 {[%emt 0:03:25]} Nxd4 {[%emt 0:00:02]} 22. Bxe8 {[%emt 0:02:03] [#] And now Nd6 would win.} Rxe8 {[%emt 0:00:35]} 23. Nd6 {[%emt 0:02:00][%csl LRb7,LRe8]} Re7 {[%emt 0:01:30]} 24. Nxb7 {[%emt 0:01:21]} (24. c5 $18 b5 25. Nxb7 Rxb7 26. c6) 24... Rxb7 $16 {[%emt 0:00:19]} 25. c5 {[%emt 0:05:29] Threatens to win with cxb6.} Bg7 {[%emt 0:00:05]} 26. Bxg7 {[%emt 0:02:15]} Kxg7 {[%emt 0:00:05]} 27. cxb6 {[%emt 0:01:09]} axb6 {[%emt 0:00:13][%mdl 4096] Endgame KRR-KRN} 28. Rc4 {[%emt 0:04:10]} Rd7 {[%emt 0:00:04]} 29. Kf1 {[%emt 0:03:26]} b5 {[%emt 0:00:05]} 30. Rc3 {[%emt 0:00:21]} g5 {[%emt 0:02:14]} 31. Rc5 {[%emt 0:01:45]} Kg6 {[%emt 0:01:50]} 32. Rd1 {[%emt 0:00:20][%cal Oh2h4]} Rd6 {[%emt 0:00:06] [#]} 33. a4 {[%emt 0:04:58] White is more active.} bxa4 $14 {[%emt 0:00:16]} 34. Rc4 {[%emt 0:00:29]} e5 {[%emt 0:00:46]} 35. Rxa4 {[%emt 0:00:02]} f6 {[%emt 0:01:06]} 36. g4 {[%emt 0:02:08]} (36. Rda1 $14) 36... h5 $11 {[%emt 0:00:15] The position is equal.} 37. h3 {[%emt 0:00:23]} Rb6 {[%emt 0:00:44]} 38. Raxd4 {[%emt 0:00:48]} exd4 {[%emt 0:00:05]} 39. Rxd4 {[%emt 0:00:02]} Rb1+ {[%emt 0:00:04]} 40. Kg2 {[%emt 0:00:06] Black defended with fortune.   Weighted Error Value: White=0.15 (very precise) /Black=0.19 (very precise)} 1/2-1/2

[Event "10th Cherry Blossom Classic 2023"]
[Site "Dulles"]
[Date "2023.05.25"]
[Round "1.3"]
[White "Antipov, Mikhail Al."]
[Black "Tahmassebi, Bijan"]
[Result "1-0"]
[ECO "D24"]
[WhiteElo "2588"]
[BlackElo "2201"]
[Annotator "TA"]
[PlyCount "33"]
[EventDate "2023.05.24"]
[EventType "swiss"]
[EventCountry "USA"]
[SourceTitle "playchess.com"]
[Source "ChessBase"]
[SourceQuality "1"]
[TimeControl "5400+30"]

{[%evp 11,33,-16,0,-31,8,0,1,0,53,41,83,93,98,94,166,143,164,149,451,450,457,452,506,499]} 1. Nf3 {[%emt 0:00:43] ChessBase} Nf6 {[%emt 0:00:47]} 2. c4 {[%emt 0:00:00]} e6 {[%emt 0:00:00]} 3. d4 {[%emt 0:00:00]} d5 {[%emt 0:00:00]} 4. Nc3 {[%emt 0:00:00]} dxc4 {[%emt 0:00:00]} 5. e4 {[%emt 0:04:03]} Bb4 {[%emt 0:00:00]} 6. e5 {[%emt 0:01:28]} Nd5 $1 {[%emt 0:00:27]} 7. Bd2 {[%emt 0:06:22] D24: Queen's Gambit Accepted: 3 Nf3 Nf6 4 Nc3.} (7. Qc2 $5 {[%cal Rf1c4]}) 7... Bxc3 {[%emt 0:01:12]} 8. bxc3 {[%emt 0:00:27]} b5 {[%emt 0:00:57]} 9. a4 {[%emt 0:04:02] The position is equal.} c6 {[%emt 0:02:02]} (9... b4 $11) 10. Ng5 $1 $14 {[%emt 0:01:09]} f5 {[%emt 0:09:35]} 11. exf6 {[%emt 0:04:25]} Nxf6 {[%emt 0:02:17]} 12. Be2 {[%emt 0:09:33] Black must now prevent axb5. White is more active.} a6 {[%emt 0:18:16]} (12... O-O $16 {is a better defense.}) 13. Bf3 {[%emt 0:03:12][%mdl 1024] [#] Strongly threatening axb5. White has strong compensation.} Ra7 $146 {[%emt 0:14:09]} ({Predecessor:} 13... h6 14. Bh5+ Nxh5 15. Qxh5+ Kd7 16. Nf7 Qe8 17. Qg6 Rg8 18. Bf4 Bb7 19. Bg3 Ke7 {1-0 Alekhine,A-Bogoljubow,E World-ch13 Alekhine-Bogoljubow +11-5=9 1929 (1)}) 14. Bf4 {[%emt 0:00:07] This pair of bishops is nice.} Bd7 $2 {[%emt 0:02:33][%mdl 8192] [#] Black is weak on the dark squares} (14... e5 $16 {is tougher.} 15. Bxe5 (15. dxe5 Qxd1+ 16. Rxd1 Nd5 $16) 15... Re7) 15. Bd6 $18 {[%emt 0:00:27] White is clearly winning.} Rb7 {[%emt 0:06:02]} 16. Qe2 {[%emt 0:01:13]} Bc8 {[%emt 0:01:44]} 17. Qe5 {[%emt 0:00:47] White took control after the opening.   Weighted Error Value: White=0.06 (flawless) /Black=0.63} (17. Nxe6 $2 {perishes.} Qxd6 18. Ng5+ Re7 $19) 1-0

[Event "10th Cherry Blossom Classic 2023"]
[Site "Dulles"]
[Date "2023.05.25"]
[Round "1.4"]
[White "Laddha, Yash Jayesh"]
[Black "Burke, John M"]
[Result "1/2-1/2"]
[ECO "B67"]
[WhiteElo "2195"]
[BlackElo "2583"]
[Annotator "TA"]
[PlyCount "83"]
[EventDate "2023.05.24"]
[EventType "swiss"]
[EventCountry "USA"]
[SourceTitle "playchess.com"]
[Source "ChessBase"]
[SourceQuality "1"]
[TimeControl "5400+30"]

{[%evp 24,83,34,45,57,63,49,58,24,60,77,71,80,72,92,113,96,75,96,77,71,17,17,17,17,16,17,2,3,0,0,0,0,0,0,0,4,0,0,0,0,0,0,0,0,0,0,0,0,0,0,0,0,0,0,0,0,0,0,0,0,-25]} 1. e4 {[%emt 0:00:03]} c5 {[%emt 0:00:12]} 2. Nf3 {[%emt 0:00:04]} d6 {[%emt 0:00:04]} 3. d4 {[%emt 0:00:03]} cxd4 {[%emt 0:00:04]} 4. Nxd4 {[%emt 0:00:03]} Nf6 {[%emt 0:00:05]} 5. Nc3 {[%emt 0:00:03]} Nc6 {[%emt 0:00:06]} 6. Bg5 {[%emt 0:00:03]} e6 {[%emt 0:00:04]} 7. Qd2 {[%emt 0:00:04]} a6 {[%emt 0:00:05]} 8. O-O-O {[%emt 0:00:04]} Bd7 {[%emt 0:00:03]} 9. f4 {[%emt 0:00:05]} b5 {[%emt 0:00:48]} 10. Bxf6 {[%emt 0:00:09]} gxf6 {[%emt 0:00:04]} 11. Kb1 {[%emt 0:00:10]} Qb6 {[%emt 0:00:40]} 12. Nxc6 {[%emt 0:00:14]} Bxc6 {[%emt 0:00:05]} 13. f5 {[%emt 0:00:13]} Qc5 {[%emt 0:02:08] B67: Sicilian: Richter-Rauzer: 7...a6 8 0-0-0 Bd7, lines without 9 f4 Be7.} 14. fxe6 {[%emt 0:06:17]} fxe6 {[%emt 0:00:05]} 15. Bd3 {[%emt 0:01:02]} h5 {[%emt 0:02:55] White is slightly better.} 16. Rhf1 {[%emt 0:05:32]} (16. Qe1 $5 {[%cal Rc3d5]}) 16... Bh6 {[%emt 0:09:12]} 17. Qe1 {[%emt 0:01:27][%cal Oc3d5]} Qe5 {[%emt 0:01:01] Prevents Nd5.} 18. Ne2 {[%emt 0:16:11] [#]} Rg8 $146 {[%emt 0:05:44]} (18... Bxe4 $2 19. Bxe4 Qxe4 20. Rxd6 $16) ({Predecessor:} 18... O-O-O 19. g3 d5 20. exd5 Bxd5 21. Qa5 Kb7 22. Rde1 Qc7 23. Qxc7+ Kxc7 24. Rxf6 h4 25. gxh4 {0-1 Martin Carmona,G (2285)-Turzo,A (2302) Titled Tuesday intern op 16th Feb blitz 2021 (6)}) 19. Qf2 {[%emt 0:11:35]} O-O-O {[%emt 0:12:08]} 20. a4 {[%emt 0:12:10] And now Nd4 would win.} ({Much less strong is} 20. Qb6 Bb7 $14) 20... Kb7 {[%emt 0:11:39]} 21. axb5 {[%emt 0:04:06]} axb5 {[%emt 0:00:40]} 22. Qxf6 {[%emt 0:05:42]} (22. Nd4 $16) 22... Bg7 $11 {[%emt 0:00:15] The position is equal.} 23. Qxe5 {[%emt 0:00:18]} Bxe5 {[%emt 0:00:03] A strong pair of Bishops.} 24. g3 {[%emt 0:03:07]} h4 {[%emt 0:03:48]} 25. Rf7+ {[%emt 0:03:47]} Kb6 {[%emt 0:02:02]} 26. Re7 {[%emt 0:05:01]} Rde8 {[%emt 0:06:47]} 27. Rxe8 {[%emt 0:00:59]} Bxe8 {[%emt 0:00:03]} 28. Rf1 {[%emt 0:02:51]} hxg3 {[%emt 0:07:44]} 29. hxg3 {[%emt 0:00:08]} Rg4 {[%emt 0:08:13]} 30. Rh1 {[%emt 0:03:40]} Bg6 {[%emt 0:02:00]} 31. Rh4 {[%emt 0:02:36]} Rg5 {[%emt 0:00:40]} 32. Rh3 {[%emt 0:03:24]} Kc5 {[%emt 0:02:28]} 33. Nf4 {[%emt 0:02:11]} Bf7 {[%emt 0:00:59]} 34. Ne2 {[%emt 0:02:54]} b4 {[%emt 0:04:40]} 35. Kc1 {[%emt 0:00:28]} Rg4 {[%emt 0:01:44]} 36. b3 {[%emt 0:02:04]} Bg6 {[%emt 0:03:58]} 37. Rh4 {[%emt 0:00:58]} Rxh4 {[%emt 0:01:20]} 38. gxh4 {[%emt 0:00:02]} Bf7 {[%emt 0:01:37]} 39. Bc4 {[%emt 0:02:50]} d5 {[%emt 0:06:25]} 40. exd5 {[%emt 0:00:06]} exd5 {[%emt 0:00:04]} 41. Bd3 {[%emt 0:00:17]} Bf6 {[%emt 0:00:05]} 42. Kd2 {[%emt 0:01:07] Weighted Error Value: White=0.06 (flawless) /Black=0.03 (flawless)} 1/2-1/2

[Event "10th Cherry Blossom Classic 2023"]
[Site "Dulles"]
[Date "2023.05.25"]
[Round "1.5"]
[White "Khanin, Semen"]
[Black "Michelle Catherina, P."]
[Result "1-0"]
[ECO "E49"]
[WhiteElo "2566"]
[BlackElo "2193"]
[Annotator "TA"]
[PlyCount "51"]
[EventDate "2023.05.24"]
[EventType "swiss"]
[EventCountry "USA"]
[SourceTitle "playchess.com"]
[Source "ChessBase"]
[SourceQuality "1"]
[TimeControl "5400+30"]

{[%evp 15,51,0,0,10,7,0,17,14,27,0,86,67,58,65,86,97,251,230,316,306,466,470,499,384,492,477,1410,1371,1378,1261,29991,29986,29986,29987,29987,29988,29988,29989]} 1. d4 {[%emt 0:00:04]} Nf6 {[%emt 0:02:27]} 2. c4 {[%emt 0:00:07]} e6 {[%emt 0:00:09]} 3. Nc3 {[%emt 0:00:06]} Bb4 {[%emt 0:00:08]} 4. e3 {[%emt 0:00:06]} O-O {[%emt 0:00:08]} 5. Bd3 {[%emt 0:00:04]} d5 {[%emt 0:00:26]} 6. a3 {[%emt 0:00:15]} Bxc3+ {[%emt 0:00:23]} 7. bxc3 {[%emt 0:00:07]} dxc4 {[%emt 0:00:29]} 8. Bxc4 {[%emt 0:00:06]} c5 {[%emt 0:00:14]} 9. Bd3 {[%emt 0:02:19] E49: Nimzo-Indian: Rubinstein: 5 Bd3 d5 6 a3 Bxc3+ 7 bxc3.} (9. dxc5 Qxd1+ 10. Kxd1 Nbd7 $17) 9... Qc7 {[%emt 0:02:50]} 10. Bb2 {[%emt 0:00:31]} e5 {[%emt 0:06:34]} 11. dxe5 $1 {[%emt 0:00:32][%cal Bd4e5,Be5e6][%mdl 32] The position is equal.} Ng4 {[%emt 0:03:46]} 12. c4 {[%emt 0:06:54] [#]} Qa5+ $146 {[%emt 0:10:57]} (12... Nxe5 $11 {remains equal.} 13. Bxh7+ {[%mdl 64] Decoy} Kxh7 14. Qh5+ Kg8 15. Qxe5 (15. Bxe5 Qa5+ 16. Kf1 Nc6 $11) 15... Qxe5 16. Bxe5 b6) ({Predecessor:} 12... Nc6 13. Nf3 Rd8 14. Qc2 h6 15. Rd1 Re8 16. Qc3 Ngxe5 17. Be4 Nxf3+ 18. gxf3 f6 {1-0 Sarana,A (2668)-Le,Q (2722) Chess.com Rapid Wk22 Swiss 2022 (5)}) 13. Kf1 {[%emt 0:08:22] aiming for h3.} Nc6 {[%emt 0:02:27]} 14. Nf3 {[%emt 0:01:56]} Re8 {[%emt 0:05:04][%cal Rg4e5]} 15. Ng5 {[%emt 0:20:53] Threatens to win with e6.} h6 $2 {[%emt 0:09:47] [#]} (15... Qd8 $16 16. Bxh7+ Kf8 17. Qxd8 (17. Qd6+ Qe7 $16) 17... Rxd8) 16. e6 $1 $40 {[%emt 0:01:35][%mdl 640] Black is in trouble.} hxg5 {[%emt 0:09:02]} (16... Bxe6 17. Nxe6) 17. Qxg4 {[%emt 0:00:36]} f6 {[%emt 0:01:46] [#]} (17... Rxe6 $142 18. Qxg5 (18. Qh5 Rh6 $16) 18... f6 {[%mdl 64] Decoy}) 18. Bf5 $1 {[%emt 0:16:40] Black must now prevent h4. A strong pair of Bishops.} Qd2 {[%emt 0:18:05]} 19. Rb1 {[%emt 0:00:56] Strongly threatening h4.} Kf8 {[%emt 0:04:43][%cal Oc8e6]} 20. h4 {[%emt 0:12:22]} gxh4 {[%emt 0:06:33]} (20... Bxe6 $142 21. hxg5 Qd3+ 22. Bxd3 Bxg4 23. gxf6 gxf6 24. Bxf6 b6) 21. Rxh4 {[%emt 0:00:45] Rh7 would kill now.} Bxe6 {[%emt 0:01:18]} 22. Rh8+ {[%emt 0:00:18]} Bg8 {[%emt 0:07:39] [#]} 23. Rxg8+ $1 {[%emt 0:02:41][%mdl 512] White mates.} Kxg8 {[%emt 0:00:08]} 24. Bxf6 {[%emt 0:00:04][%csl Gf6][%cal Rg4g7]} Re7 {[%emt 0:01:33] Black is weak on the light squares} 25. Bxe7 {[%emt 0:00:05]} Nxe7 {[%emt 0:00:10]} 26. Be6+ {[%emt 0:00:05] Black did not feel at home in the position after the opening.   Weighted Error Value: White=0.13 (very precise) /Black=0.86} (26. Rxb7 $2 {loses.} Nxf5 27. Kg1 Qc1+ 28. Kh2 Rf8 $19) 1-0

[Event "10th Cherry Blossom Classic 2023"]
[Site "Dulles"]
[Date "2023.05.25"]
[Round "1.6"]
[White "Morefield, Jason"]
[Black "Matviishen, Viktor"]
[Result "1-0"]
[ECO "B12"]
[WhiteElo "2167"]
[BlackElo "2538"]
[Annotator "TA"]
[PlyCount "81"]
[EventDate "2023.05.24"]
[EventType "swiss"]
[EventCountry "USA"]
[SourceTitle "playchess.com"]
[Source "ChessBase"]
[SourceQuality "1"]
[TimeControl "5400+30"]

{[%evp 9,81,10,9,5,16,18,17,16,19,11,10,-4,-10,-7,-4,-4,1,-1,75,-17,0,-55,-28,-29,-29,-30,-22,-84,-78,-95,-96,-93,-77,-87,-85,-93,-34,-40,-28,-100,0,0,0,0,0,-7,0,-8,0,0,125,16,466,421,552,511,989,966,1136,1109,1028,941,1868,1772,29976,29972,5808,5407,29978,29979,29979,29978,29973,29974]} 1. e4 {[%emt 0:00:02] Roiz,Michael} c6 {[%emt 0:00:07]} 2. d4 {[%emt 0:00:14]} d5 {[%emt 0:00:05]} 3. e5 {[%emt 0:00:09]} Bf5 {[%emt 0:00:05]} 4. h4 {[%emt 0:00:11]} h5 {[%emt 0:00:05]} 5. Bd3 {[%emt 0:00:09]} Bxd3 {[%emt 0:00:05]} 6. Qxd3 {[%emt 0:00:11][%cal Oe5e6] e6! would be deadly. B12: Caro-Kann: Advance Variation.} Qa5+ {[%emt 0:00:04]} 7. Nd2 {[%emt 0:00:11][%cal Oe5e6]} e6 {[%emt 0:00:13]} 8. Ngf3 {[%emt 0:00:15] The position is equal.} Nh6 {[%emt 0:00:14] The main line 8...Nh6 scores better than 8...Qa6.} 9. O-O {[%emt 0:00:15]} Nf5 {[%emt 0:00:04]} 10. c4 {[%emt 0:00:45]} Be7 {[%emt 0:04:28]} 11. g3 {[%emt 0:02:00]} Nd7 {[%emt 0:08:14][%cal Bb8d7,Bd7f8,Bf8h7][%mdl 32]} 12. b3 {[%emt 0:01:17]} Rd8 {[%emt 0:01:33]} 13. Qc2 {[%emt 0:02:20]} Rg8 {[%emt 0:20:52]} (13... O-O $11) 14. Bb2 {[%emt 0:01:50]} (14. Rd1 $16) 14... Nf8 {[%emt 0:05:29] [#]} 15. a3 $146 {[%emt 0:06:14]} ({White should play} 15. cxd5 $11 cxd5 16. Rfc1) ({Predecessor:} 15. Ng5 Bxg5 16. hxg5 Ng6 17. Nf3 h4 18. g4 Nfe7 19. Rfe1 Rh8 20. Re3 Rd7 21. a4 {1-0 Ponomariov,R (2712)-Mchedlishvili,M (2605) EU-ch 18th Minsk 2017 (10)}) 15... Nh7 {[%emt 0:02:43]} 16. b4 {[%emt 0:00:35]} Qb6 {[%emt 0:03:15]} 17. cxd5 {[%emt 0:02:44]} cxd5 {[%emt 0:01:01]} 18. Qd3 {[%emt 0:08:27]} (18. Kh1 $11 {remains equal.}) 18... g5 $17 {[%emt 0:01:03]} 19. hxg5 {[%emt 0:00:08]} Nxg5 {[%emt 0:00:20]} 20. Nxg5 {[%emt 0:06:15]} Rxg5 {[%emt 0:00:17]} 21. Nf3 {[%emt 0:04:15]} Rg6 {[%emt 0:01:10]} 22. Nh2 {[%emt 0:00:52]} Kd7 {[%emt 0:15:10]} (22... Bg5 $1 $17) 23. Rfc1 $15 {[%emt 0:03:31]} Rdg8 {[%emt 0:02:59][%cal Rg6g3] Hoping for ...Rxg3+!} 24. Kf1 {[%emt 0:01:45]} (24. Kh1 $1 $11) 24... f6 {[%emt 0:29:53]} (24... Rxg3 $17 25. fxg3 Rxg3) 25. Nf3 $11 {[%emt 0:02:08]} h4 {[%emt 0:01:30]} 26. gxh4 {[%emt 0:00:09]} Rg4 {[%emt 0:00:07]} 27. exf6 {[%emt 0:04:50]} Bxf6 {[%emt 0:02:54]} 28. Rc5 {[%emt 0:00:11]} Nd6 {[%emt 0:00:00]} (28... Bxh4 $2 29. Ne5+ Kd6 30. Nxg4 Rxg4 31. Qf3 $18 (31. Qe2 Re4 $16)) 29. Rac1 {[%emt 0:04:00]} (29. Ne5+ $2 Bxe5 30. dxe5 Ne4 $19) 29... Rf8 {[%emt 0:00:10] [#]} (29... Ne4 $11 {keeps the balance.}) 30. a4 {[%emt 0:03:30]} (30. Ne5+ $1 $16 Bxe5 31. dxe5) 30... a5 $2 {[%emt 0:00:49][%mdl 8192] [#] Black cannot hold the game after this.} (30... Ne4 $11 {and Black has nothing to worry.} 31. a5 Nxc5 32. Qh7+ Rg7 33. Qxg7+ Bxg7 34. axb6 axb6 35. bxc5 Rxf3) 31. Ba3 $1 $18 {[%emt 0:14:14]} (31. bxa5 Qxb2 32. Rb1 Qa2 $11) (31. Rxa5 Qxb4 32. Bc3 Qc4 33. Qxc4 Nxc4 $15) 31... axb4 {[%emt 0:00:30]} 32. a5 {[%emt 0:00:24][%mdl 64] Deflection} Qd8 {[%emt 0:00:28]} (32... Qa6 $142 33. Rc7+ Ke8 34. Qxa6 bxa6) 33. Bxb4 {[%emt 0:00:17]} Rf7 {[%emt 0:00:31] [#]} 34. Rb5 $1 {[%emt 0:01:45][%cal Bc5b5,Bb5b6,Bb6e6][%mdl 544]} Ke8 {[%emt 0:00:27]} (34... Rgg7 35. Rb6) 35. Rb6 {[%emt 0:00:20]} Ne4 {[%emt 0:00:34]} 36. Rxe6+ {[%emt 0:01:33]} Be7 {[%emt 0:00:00]} 37. Qb5+ {[%emt 0:01:05]} Kf8 {[%emt 0:00:01]} 38. Rxe7 {[%emt 0:00:41]} ({Stronger than} 38. Qxb7 Bxb4 39. Qxb4+ Kg7 40. Rxe4 (40. Ke2 $2 Qxh4 41. Rf1 Rxf3 $19) 40... dxe4 $11) 38... Rxe7 {[%emt 0:00:10]} 39. Qxb7 {[%emt 0:00:56][%mdl 64] Pin. White mates.} Nd6 {[%emt 0:00:15]} 40. Bxd6 {[%emt 0:00:25][%mdl 64] Remove Defender, Deflection} Qxd6 {[%emt 0:00:14]} 41. Qc8+ {[%emt 0:00:06] An entertaining game by Morefield.   Weighted Error Value: White=0.15 (very precise) /Black=0.78} 1-0